Cogmind - Beta 9.6 --- EXPLORER MODE // 2020.05.04 @ 17:48:05 // Halloween2019/Abominations Player: n8leveler Result: Self-destructed Performance ------------- Evolutions (1) 500 Regions Visited (2) 400 Robots Destroyed (34) 170 Value Destroyed (1727) 1727 Prototype IDs (1) 20 Alien Tech Used (0) 0 Bonus (0) 0 TOTAL SCORE: 2817 Bonus ------- None Cogmind --------- Core Integrity 270/400 Matter 300/300 Energy 280/280 System Corruption 1% Temperature Cool (0) Movement Rolling (90) Ox1 Location -9/Materials Parts ------- > --- POWER (1) -------- Heavy Ion Engine > --- PROPULSION (2) --- Wheel Wheel > --- UTILITY (4) ------ Medium Storage Unit Sensor Array Signal Interpreter Armor Integrity Analyzer > --- WEAPON (3) ------- Improved Light Cannon Improved Light Cannon Grenade Launcher > --- INVENTORY (8) ---- Wheel Propulsion Shielding Light Armor Plating Heavy EM Pulse Gun Beam Rifle Grenade Launcher Grenade Launcher Mining Claw Peak State ------------ > --- POWER ------------ Heavy Ion Engine > --- PROPULSION ------- Wheel Wheel > --- UTILITY ---------- Medium Storage Unit Sensor Array Signal Interpreter Armor Integrity Analyzer > --- WEAPON ----------- Improved Light Cannon Improved Light Cannon Grenade Launcher > --- INVENTORY -------- Wheel Propulsion Shielding Light Armor Plating Heavy EM Pulse Gun Beam Rifle Grenade Launcher Grenade Launcher Mining Claw [Rating: 16] Favorites ----------- Power Heavy Ion Engine Engine Heavy Ion Engine Propulsion Wheel Treads Light Treads Leg Aluminum Leg Wheel Wheel Utility Medium Storage Unit Device Sensor Array Storage Medium Storage Unit Processor Signal Interpreter Weapon Assault Rifle Energy Gun Small Laser Ballistic Gun Assault Rifle Ballistic Cannon Improved Light Cannon Launcher Grenade Launcher Build | -11 -10 -9 ------- Run | Scr Mat Mat Slots Evolved 3 | . 1 2 Power . | . . . Propulsion . | . . . Utility 2 | . 1 1 Weapon 1 | . . 1 Parts Attached 30 | 7 15 8 Power 5 | 1 3 1 Engine 5 | 1 3 1 Core . | . . . Reactor . | . . . Propulsion 6 | 2 4 . Treads 1 | . 1 . Leg 2 | 2 . . Wheel 3 | . 3 . Hover . | . . . Flight . | . . . Utility 4 | 2 1 1 Device 1 | 1 . . Storage 1 | 1 . . Processor 2 | . 1 1 Hackware . | . . . Protection . | . . . Artifact . | . . . Weapon 15 | 2 7 6 Energy Gun 6 | 1 3 2 Energy Cannon . | . . . Ballistic Gun 2 | 1 1 . Ballistic Cannon 2 | . . 2 Launcher 5 | . 3 2 Special Weapon . | . . . Impact Weapon . | . . . Slashing Weapon . | . . . Piercing Weapon . | . . . Special Melee Weapon . | . . . Unidentified Prototypes 1 | . . 1 Parts Lost 6 | . 5 1 Power 2 | . 2 . Propulsion 2 | . 2 . Utility . | . . . Weapon 2 | . 1 1 Highest Loss Streak 2 | . 2 1 Average Slot Usage (%) 89 | . 82 99 Engine 6 | . 3 10 Treads 1 | . 3 . Leg 1 | . 3 . Wheel 15 | . 12 20 Device 11 | . 12 10 Storage 11 | . 12 10 Processor 15 | . 12 19 Energy Gun 2 | . 3 2 Ballistic Gun 9 | . 12 6 Ballistic Cannon 5 | . . 13 Launcher 7 | . 6 7 Naked Turns . | . . . Heaviest Build 28 | 17 19 28 Greatest Support 20 | 20 20 20 Greatest Overweight (x) 1 | 1 1 1 Average Overweight (x) . | . . . Largest Inventory Capacity 8 | 8 8 8 Average Capacity 7 | 6 8 8 Most Carried 8 | 7 8 8 Average Carried 7 | 4 7 7 Final Capacity 8 | 8 8 8 Final Carried 8 | 5 8 8 Class Distribution -------------------- 84% | Hacker-Mutant 15% | Hacker-Skirmisher Dominant Class ---------------- Hacker-Mutant | -10/Materials Hacker-Mutant | -9/Materials Resources | -11 -10 -9 ----------- Run | Scr Mat Mat Matter Collected 1502 | 186 701 615 Remotely . | . . . Salvage Created 926 | . 497 429 Parts 52 | . 23 29 Haulers Intercepted . | . . . Recyclers Shooed . | . . . Parts Field Recycled . | . . . Retrieved Matter . | . . . Parts Self-Destructed . | . . . Prevented . | . . . Kills | -11 -10 -9 ------- Run | Scr Mat Mat Combat Hostiles Destroyed 28 | . 12 16 Guns 9 | . 6 3 Cannons 8 | . . 8 AOE 11 | . 6 5 Classes Destroyed 6 | . 4 2 Worker 3 | . 3 . Operator 1 | . . 1 Grunt 3 | . 2 1 Brawler 1 | . . 1 Abomination 24 | . 10 14 Anomaly 2 | . 1 1 Best Kill Streak 13 | . 3 13 Combat Bots Only 11 | . 2 11 Max Kills in Single Turn 2 | . 1 2 Gunslinging . | . . . Exploded 2 | . 1 2 Melee . | . . . Uniques/NPCs Destroyed . | . . . Combat | -11 -10 -9 -------- Run | Scr Mat Mat Damage Taken 2096 | . 1390 706 Core 283 | . 153 130 Absorbed by Shields . | . . . Core Remaining (%) 69 | 100 38 . Volleys Fired 104 | . 59 45 Largest 3 | . 2 3 Hottest 109 | . 60 109 Shots Fired 235 | . 110 125 Gun 136 | . 80 56 Cannon 48 | . . 48 Launcher 51 | . 30 21 Special . | . . . Kinetic 158 | . 68 90 Thermal 17 | . 5 12 Explosive 51 | . 30 21 Electromagnetic 9 | . 7 2 Robot Hit Streak 43 | . 21 43 Robot Miss Streak 5 | . 5 1 Penetration Max . | . . . Secondary Targets 1 | . 1 . Max Gunslinging Chain 1 | . 1 . Shots Hit Robots 185 | . 79 106 Core Hits 99 | . 54 45 Critical Hits 2 | . 2 . Critical Kills 2 | . 2 . Critical Parts Destroyed . | . . . Melee Attacks . | . . . Impact . | . . . Slashing . | . . . Piercing . | . . . Sneak Attacks . | . . . Combat Hostiles . | . . . Follow-up Attacks . | . . . Damage Inflicted 4204 | . 1754 2450 Guns 1399 | . 744 655 Cannons 879 | . . 879 Explosions 1926 | . 1010 916 Melee . | . . . Ramming . | . . . Kinetic 1997 | . 631 1366 Thermal 238 | . 72 166 Explosive 1926 | . 1010 916 Electromagnetic 43 | . 41 2 Impact . | . . . Slashing . | . . . Piercing . | . . . Highest Corruption 1 | . 1 1 Average Corruption 1 | . 1 1 Corruption Purged . | . . . Effects 5 | . 3 2 Message Errors 2 | . 2 . Data Loss (minor) 3 | . 1 2 Overload Shots . | . . . Overflow Damage 89 | . 45 44 Projectiles 24 | . . 24 Explosions 65 | . 45 20 Melee . | . . . Knockbacks 8 | . . 8 Impact . | . . . Kinetic 8 | . . 8 Secondary . | . . . Self-Inflicted Damage 53 | . 53 . Shots 5 | . 5 . Rammed . | . . . Targets Rammed . | . . . Kicked . | . . . Crushed . | . . . Highest Temperature 228 | . 7 228 Average Temperature 77 | . 4 81 Received Heat Transfer 150 | . 60 90 Effects 1 | . . 1 Energy Bleed 1 | . . 1 Siege Activations . | . . . Robots Corrupted . | . . . Combat Hostiles . | . . . Parts Fried 2 | . 2 . Impact Corruptions . | . . . Robots Melted . | . . . Combat Hostiles . | . . . Parts Melted . | . . . Heat Transferred 129 | . 30 99 Parts Sabotaged . | . . . Parts Stolen . | . . . Parts Stripped . | . . . Power Chain Reactions . | . . . Missiles Intercepted . | . . . Alert | -11 -10 -9 ------- Run | Scr Mat Mat Peak Influence 110 | . 72 110 Average Influence 43 | . 39 53 Maximum Alert Level . | . . . Low Security (%) 100 | 100 100 100 Level 1 . | . . . Level 2 . | . . . Level 3 . | . . . Level 4 . | . . . Level 5 . | . . . High Security . | . . . Max Security . | . . . Squads Dispatched 5 | . 1 4 Investigation . | . . . Extermination . | . . . Reinforcement 4 | . . 4 Assault 1 | . 1 . Garrison . | . . . Intercept . | . . . Construction Impeded . | . . . Haulers Reinforced . | . . . Stealth | -11 -10 -9 --------- Run | Scr Mat Mat Distress Signals 5 | . 1 4 Communications Jammed . | . . . Distress Signals . | . . . Times Spotted 44 | . 15 29 Peak Tracking Total 12 | . 3 12 Tactical Retreats 5 | . . 5 Traps | -11 -10 -9 ------- Run | Scr Mat Mat Traps Triggered 1 | . 1 . Indirectly . | . . . Trap Hack Attempts . | . . . Triggered . | . . . Disarmed . | . . . Reprogrammed . | . . . Reused . | . . . Traps Extracted . | . . . Installed . | . . . Triggered . | . . . Machines | -11 -10 -9 ---------- Run | Scr Mat Mat Machines Disabled 5 | . 4 1 Max in Single Turn 1 | . 1 1 Machines Sabotaged . | . . . Garrisons Compromised . | . . . Overloaded Fab Kills . | . . . Fab Network Shutdowns . | . . . Hacking | -11 -10 -9 --------- Run | Scr Mat Mat Machines Accessed 6 | . 3 3 Terminals 3 | . 2 1 Fabricators . | . . . Repair Stations . | . . . Recycling Units 3 | . 1 2 Scanalyzers . | . . . Garrison Access . | . . . Total Hacks 10 | . 4 6 Successful 7 | . 3 4 Failed 3 | . 1 2 Catastrophic . | . . . Database Lockouts . | . . . Manual . | . . . Terminals 4 | . 3 1 Fabricators . | . . . Repair Stations . | . . . Recycling Units 6 | . 1 5 Scanalyzers . | . . . Garrison Access . | . . . Terminal Hacks 3 | . 2 1 Locate Traps 1 | . 1 . Hauler Manifests 1 | . 1 . Zone Layout 1 | . . 1 Fabricator Hacks . | . . . Repair Station Hacks . | . . . Recycling Unit Hacks 4 | . 1 3 Report Inventory 3 | . 1 2 Retrieve Components 1 | . . 1 Scanalyzer . | . . . Garrison Access Hacks . | . . . Unauthorized Hacks . | . . . Terminals . | . . . Fabricators . | . . . Repair Stations . | . . . Recycling Units . | . . . Scanalyzers . | . . . Garrison Access . | . . . Data Cores Recovered . | . . . Used . | . . . Hacking Detections 2 | . 1 1 Full Trace Events . | . . . Feedback Events . | . . . Feedback Blocked . | . . . Robot Schematics Acquired . | . . . Robots Built . | . . . Matter . | . . . Time . | . . . Total Robot Build Rating . | . . . Part Schematics Acquired . | . . . Parts Built . | . . . Matter . | . . . Time . | . . . Total Part Build Rating . | . . . Parts Repaired . | . . . Time . | . . . Parts Recycled . | . . . Recycled Matter . | . . . Retrieved Matter . | . . . Retrieved Components 3 | . . 3 Parts Scanalyzed . | . . . Part Schematics Acquired . | . . . Parts Damaged . | . . . Bothacking | -11 -10 -9 ------------ Run | Scr Mat Mat Used RIF Installer . | . . . Robots Hacked . | . . . Non-combat . | . . . Combat . | . . . Robot Hacks Applied . | . . . Relay Couplers Released . | . . . Robots Rewired . | . . . Allies Hacked . | . . . Hacks Repelled . | . . . Allies | -11 -10 -9 -------- Run | Scr Mat Mat Total Allies . | . . . Largest Group . | . . . Highest-Rated Group . | . . . Highest-Rated Ally . | . . . Total Orders . | . . . Ally Attacks . | . . . Total Damage . | . . . Kills . | . . . Allies Corrupted . | . . . Allies Melted . | . . . Intel | -11 -10 -9 ------- Run | Scr Mat Mat Robot Analysis Total . | . . . Derelict Logs Recovered . | . . . Drone Launches . | . . . Drone Recoveries . | . . . Exploration | -11 -10 -9 ------------- Run | Scr Mat Mat Turns Passed 1428 | 61 791 576 Spaces Moved 1048 | 44 543 461 Core 15 | 15 . . Treads 104 | . 104 . Legs 112 | 29 83 . Wheels 817 | . 356 461 Hover . | . . . Flight . | . . . Fastest Speed 50 | 50 80 80 Average Speed 97 | 100 104 89 Slowest Speed 160 | 150 160 90 Overloaded Moves . | . . . Propulsion Burnouts . | . . . Robots Hopped . | . . . Cave-ins Triggered . | . . . Exploration Rate (%) 44 | 4 85 45 Regions Visited 2 Branch Regions . Pre-discovered Areas . | . . . Known Exits Taken 2 | 1 1 . Unknown Exits Taken . | . . . Scrap Searched . | . . . Spaces Dug . | . . . Terrain Destroyed 221 | . 156 65 Melee . | . . . Projectile 1 | . . 1 AOE 220 | . 156 64 Actions | -11 -10 -9 --------- Run | Scr Mat Mat Total 1229 | 58 647 524 Wait 20 | . 15 5 Move 1046 | 43 542 461 Hop . | . . . Pick Up 20 | 8 10 2 Fast Attach 12 | 4 4 4 Attach 7 | 3 3 1 Detach . | . . . Swap 11 | . 8 3 Drop 9 | . 6 3 Fire 104 | . 59 45 Melee . | . . . Ram . | . . . Kick . | . . . Crush . | . . . Escape Stasis . | . . . Rewire . | . . . Trap . | . . . Miscellaneous . | . . . Route ------- -11/Scrapyard -10/Materials (discovered 2 exits: *Mat x2) -9/Materials (discovered 1 exit: *Mat) History --------- Turn | Location | Event 8 | -11/Scrapyard | Identified exit to Materials 8 | -11/Scrapyard | Discovered exit to Materials (range 16) 62 | -11/Scrapyard | Entered Materials 62 | -10/Materials | Evolved 1 slot: Utility x1 258 | -10/Materials | Core integrity fell below 50% 316 | -10/Materials | Build established: Hacker-Mutant 574 | -10/Materials | Identified exit to Materials 574 | -10/Materials | Discovered exit to Materials (range 14) 690 | -10/Materials | Discovered exit to Materials (range 16) 853 | -10/Materials | Entered another Materials area 853 | -9/Materials | Evolved 2 slots: Utility x1, Weapon x1 1068 | -9/Materials | Identified exit to Materials 1068 | -9/Materials | Discovered exit to Materials (range 16) 1076 | -9/Materials | Destroyed 11 combat bots 1423 | -9/Materials | Identified exit to Mines 1423 | -9/Materials | Discovered exit to Mines (range 8) 1429 | -9/Materials | Self-destructed Last Messages --------------- Aluminum Leg, Wheel. 01331_ Hungry Anomaly eats Terrain Scan Processor. 01331_ Lesser Abomination spits out Wheel. 01331_ Lesser Abomination feeds off Hungry Anomaly, taking Arm. Wheel. 01332_ Lesser Abomination knocked back. 01335_ Lesser Abomination destroyed. 01349_ Parts repaired by Paradox Anomaly. 01350_ Acquired 12 matter. 01353_ Acquired 26 matter. 01356_ R-06 Scavenger collects Terrain Scan Processor. 01361_ Warp Anomaly forced to warp away. 01396_ 54 Matter blinks away. 01398_ 8 Matter blinks away. 01403_ K-01 Serf collects debris. 01418_ Acquired 16 matter. 01423_ EXIT=FOUND: MINES (Blocked) 01429_ Connecting with Terminal... >>Layout(Zone) Retrieving Zone 9H layout... Downloaded map data. Map ----- +----------------------------------------------------+ | # #????? | | ###########????? | | """ #??????????????? | | """""% #??????????????? | | """""[ #??????????????? | | """ " #??????????????? | | #??????????????? | | #####??????????????? | | #??????????????????? | | % #??????????????????? | | #??????????????????? | | #??????????????????? | | ########???????????? | | % # #???????????? | | # #???????????? | | # #???????????? | | % # #???????????? | | #""T""## # #???????????? | | #"""""?# # ###########?? | | ######?# + # #?? | | ???????# # # #?? | | ??###### # # ##? | | ??# # # #? | | ??# # # """ " ##? | | ??# # # """ T #?? | | ??# # # """ @" #?? | | ??# ######## #?? | | ??# # ###########+#####?? | | ??+ # % #????? | | ??# ?# #????? | | ??# ?# % #????? | | ??# ??# ##+##+#### #????? | | ??+ ??####### #?## ##???? | | ??#?????????# T ### ##??? | | ????????????# ## #??? | | ????????????# ## #??? | | ????????????# ## > #??? | | ????????????# """ ## #??? | | ????????????# """ ##"" ""#??? | | ????????????# """ ###"|||"##??? | | ????????????# #??#"""#????? | | ????????????# ?? #???####????? | | ????????????# ?? #???????????? | | ????????????? ?? ????????????? | | ????????????????##????????????? | | ??????????????????????????????? | | ??????????????????????????????? | | | | | | | +----------------------------------------------------+ Best States ------------- Heat Dissipation 28 Energy Generation 14 Energy Capacity 280 Matter Stores 300 Matter Capacity 300 Sight Range 16 Robot Scan Range 10 Terrain Scan Density 10 Resistance: KI 35 Resistance: TH 35 Resistance: EX 35 Resistance: EM 35 Resistance: I 35 Resistance: S 35 Resistance: P 35 Evasion (%) 50 Armor Integrity Analysis 33 Recoil Reduction 1 Offensive Hacking 20 Item Schematics ----------------- None Robot Schematics ------------------ None Fabricated ------------ Nothing Alien Tech Used ----------------- None Achievements -------------- None Challenges ------------ None Game ------ Seed AutogunMeleeVibroblade Manual? 0 Play Time 00:26:16 Cumulative 104.0 hours Start 2020.04.21 @ 22:44:12 End 2020.05.04 @ 17:48:05 Sessions 3 Manual Loads 0 Difficulty Explorer Special Mode Halloween2019/Abominations Game No. 60 Rogue 43 Adventurer 0 Explorer 17 Win Type - Total 0 Types 0/0/0/0/0/0/0 Lore% 21 Gallery% 54 Achievement% 40 Wizard Run 0 Options --------- ASCII 0 Keyboard 0 Movement Mouse Keybinds 0 Fullscreen 2 Font 14/SmallcapsGlow Map View 72x54 Tactical HUD 1 Map Filters NONE Filters NONE Steam 1 RUN: 99e3eb9d-cff1-4bbc-a60a-0d09d28e6491